Workbook

Sheet Sheet1
A1: Template for symmetrization of a doubly exponential broadened peaks, using two stages of 1st derivative addition.
A2: (1) Paste your raw data into column A and B, rows 9 to .... (2) Set K2 to zero aznd adjust K1 for lowest positive tail. (3) Adjust K2 first for lowest positive tail and most symmetrical peak
B3: Peak settings | D3: Row # | F3: Measured areas | G3: First peak | H3: Second peak | J3: Type estimated values of K1 (1st stage) and K2 (2nd stage) first-derivative weighting factors and then click the buttons to fine-tune.
B4: Start x | C4: 0 | D4: =MATCH(C4,A9:A612)+8 -> 9 | F4: Raw | G4: =(SUM(INDIRECT("c"&D4):INDIRECT("c"&D5))*(A10-A9)) -> 278.322 | H4: =(SUM(INDIRECT("c"&D5):INDIRECT("c"&D6))*(A10-A9)) -> 40.6345 | J4: K1= | K4: 200 | M4: The smooth function is defined by the 17 red coefficients in row 5, columns K through AA.
B5: Valley x | C5: 1310 | D5: =MATCH(C5,A9:A613)+8 -> 271 | F5: Sharpened | G5: =(SUM(INDIRECT("k"&D4):INDIRECT("k"&D5))*(A11-A10)) -> 305.5494444 | H5: =(SUM(INDIRECT("k"&D5):INDIRECT("k"&D6))*(A11-A10)) -> 13.87505556 | J5: K2= | K5: 50 | M5: -8 | N5: -7 | O5: -6 | P5: -5 | Q5: -4 | R5: -3 | S5: -2 | T5: -1 | U5: 0 | V5: 1 | W5: 2 | X5: 3 | Y5: 4 | Z5: 5 | AA5: 6 | AB5: 7 | AC5: 8
B6: End x | C6: 2450 | D6: =MATCH(C6,A9:A614)+8 -> 499 | H6: ` | L6: Smooth coefficients---> | M6: 0 | N6: 0 | O6: 0 | P6: 0 | Q6: 0 | R6: 0 | S6: 1 | T6: 2 | U6: 3 | V6: 2 | W6: 1 | X6: 0 | Y6: 0 | Z6: 0 | AA6: 0 | AB6: 0 | AC6: 0
A7: Raw data | B7: Baseline | C7: 0
A8: X | B8: Y | C8: Baseline corrected | D8: Smoothed signal | F8: First derivative | G8: First stage | H8: First derivative | I8: Second stage | K8: Sharpened Signal
A9: 0 | B9: 0 | C9: =B9-$C$7 -> 0 | D9: 0 | F9: 0 | G9: =D9+$K$4*F9 -> 0 | H9: 0 | I9: =G9+$K$5*H9 -> 0 | K9: =I9 -> 0
A10: 5 | B10: 0 | C10: =B10-$C$7 -> 0 | D10: 0 | F10: =(D11-D9)/(A11-A9) -> 0 | G10: =D10+$K$4*F10 -> 0 | H10: =(G11-G9)/(A11-A9) -> 0 | I10: =G10+$K$5*H10 -> 0 | K10: =I10 -> 0
A11: 10 | B11: 0.0001 | C11: 0.0001 | D11: 0 | F11: =(D12-D10)/(A12-A10) -> 0 | G11: 0 | H11: =(G12-G10)/(A12-A10) -> 0 | I11: =G11+$K$5*H11 -> 0 | K11: 0
A12: 15 | B12: 0.0001 | C12: 0.0001 | D12: 0 | F12: 0 | G12: 0 | H12: 0 | I12: 0 | K12: 0
A13: 20 | B13: 0 | C13: 0 | D13: 0 | F13: 0 | G13: 0 | H13: 0 | I13: 0 | K13: 0
A14: 25 | B14: 0 | C14: 0 | D14: 0 | F14: 0 | G14: 0 | H14: 0 | I14: 0 | K14: 0
A15: 30 | B15: 0 | C15: 0 | D15: 0 | F15: 0 | G15: 0 | H15: 0 | I15: 0 | K15: 0
A16: 35 | B16: 0 | C16: 0 | D16: 0 | F16: 0 | G16: 0 | H16: 0 | I16: 0 | K16: 0
A17: 40 | B17: 0.0001 | C17: 0.0001 | D17: 0 | F17: 0 | G17: 0 | H17: 0 | I17: 0 | K17: 0
A18: 45 | B18: 0.0001 | C18: 0.0001 | D18: 0 | F18: 0 | G18: 0 | H18: 0 | I18: 0 | K18: 0
A19: 50 | B19: 0.0001 | C19: 0.0001 | D19: 0 | F19: 0 | G19: 0 | H19: 2.222222222e-05 | I19: 0.001111111111 | K19: 0.001111111111
A20: 55 | B20: 0 | C20: 0 | D20: 0 | F20: 1.111111111e-06 | G20: 0.0002222222222 | H20: 1.111111111e-06 | I20: 0.0002777777778 | K20: 0.0002777777778
A21: 60 | B21: 0 | C21: 0 | D21: =(C13*$M$6+C14*$N$6+C15*$O$6+C16*$P$6+C17*$Q$6+C18*$R$6+C19*$S$6+C20*$T$6+C21*$U$6+C22*$V$6+C23*$W$6+C24*$X$6+C25*$Y$6+C26*$Z$6+C27*$AA$6+C28*$AB$6+C29*$AC$6)/SUM($M$6:$AC$6) -> 1.111111111e-05 | F21: 0 | G21: 1.111111111e-05 | H21: -4.444444444e-05 | I21: -0.002211111111 | K21: -0.002211111111
A22: 65 | B22: 0 | C22: 0 | D22: =(C14*$M$6+C15*$N$6+C16*$O$6+C17*$P$6+C18*$Q$6+C19*$R$6+C20*$S$6+C21*$T$6+C22*$U$6+C23*$V$6+C24*$W$6+C25*$X$6+C26*$Y$6+C27*$Z$6+C28*$AA$6+C29*$AB$6+C30*$AC$6)/SUM($M$6:$AC$6) -> 0 | F22: -1.111111111e-06 | G22: -0.0002222222222 | H22: -1.111111111e-06 | I22: -0.0002777777778 | K22: -0.0002777777778
A23: 70 | B23: 0 | C23: 0 | D23: 0 | F23: 0 | G23: 0 | H23: 2.222222222e-05 | I23: 0.001111111111 | K23: 0.001111111111
A24: 75 | B24: 0 | C24: 0 | D24: 0 | F24: 0 | G24: 0 | H24: 0 | I24: 0 | K24: 0
A25: 80 | B25: 0 | C25: 0 | D25: 0 | F25: 0 | G25: 0 | H25: 0 | I25: 0 | K25: 0
A26: 85 | B26: 0 | C26: 0 | D26: 0 | F26: 0 | G26: 0 | H26: 0 | I26: 0 | K26: 0
A27: 90 | B27: 0 | C27: 0 | D27: 0 | F27: 0 | G27: 0 | H27: 0 | I27: 0 | K27: 0
A28: 95 | B28: 0 | C28: 0 | D28: 0 | F28: 0 | G28: 0 | H28: 0 | I28: 0 | K28: 0
A29: 100 | B29: 0 | C29: 0 | D29: 0 | F29: 0 | G29: 0 | H29: 2.222222222e-05 | I29: 0.001111111111 | K29: 0.001111111111
A30: 105 | B30: 0 | C30: 0 | D30: 0 | F30: 1.111111111e-06 | G30: 0.0002222222222 | H30: 6.777777778e-05 | I30: 0.003611111111 | K30: 0.003611111111
A31: 110 | B31: 0 | C31: 0 | D31: 1.111111111e-05 | F31: 3.333333333e-06 | G31: 0.0006777777778 | H31: 9.222222222e-05 | I31: 0.005288888889 | K31: 0.005288888889
A32: 115 | B32: 0 | C32: 0 | D32: 3.333333333e-05 | F32: 5.555555556e-06 | G32: 0.001144444444 | H32: 5e-05 | I32: 0.003644444444 | K32: 0.003644444444
A33: 120 | B33: 0.0001 | C33: 0.0001 | D33: 6.666666667e-05 | F33: 5.555555556e-06 | G33: 0.001177777778 | H33: -3.888888889e-05 | I33: -0.0007666666667 | K33: -0.0007666666667
A34: 125 | B34: 0.0001 | C34: 0.0001 | D34: 8.888888889e-05 | F34: 3.333333333e-06 | G34: =D34+$K$4*F34 -> 0.0007555555556 | H34: -8.555555556e-05 | I34: =G34+$K$5*H34 -> -0.003522222222 | K34: -0.003522222222
A35: 130 | B35: 0.0001 | C35: 0.0001 | D35: 0.0001 | F35: 1.111111111e-06 | G35: 0.0003222222222 | H35: -6.555555556e-05 | I35: -0.002955555556 | K35: -0.002955555556
A36: 135 | B36: 0.0001 | C36: 0.0001 | D36: 0.0001 | F36: 0 | G36: 0.0001 | H36: -2.222222222e-05 | I36: -0.001011111111 | K36: -0.001011111111
A37: 140 | B37: 0.0001 | C37: 0.0001 | D37: 0.0001 | F37: 0 | G37: 0.0001 | H37: 0 | I37: 0.0001 | K37: 0.0001
A38: 145 | B38: 0.0001 | C38: 0.0001 | D38: 0.0001 | F38: 0 | G38: 0.0001 | H38: 0 | I38: 0.0001 | K38: 0.0001
A39: 150 | B39: 0.0001 | C39: 0.0001 | D39: 0.0001 | F39: 0 | G39: 0.0001 | H39: 0 | I39: 0.0001 | K39: 0.0001
A40: 155 | B40: 0.0001 | C40: 0.0001 | D40: 0.0001 | F40: 0 | G40: 0.0001 | H40: 2.222222222e-05 | I40: 0.001211111111 | K40: 0.001211111111
A41: 160 | B41: 0.0001 | C41: 0.0001 | D41: 0.0001 | F41: 1.111111111e-06 | G41: 0.0003222222222 | H41: 6.777777778e-05 | I41: 0.003711111111 | K41: 0.003711111111
A42: 165 | B42: 0.0001 | C42: 0.0001 | D42: 0.0001111111111 | F42: 3.333333333e-06 | G42: 0.0007777777778 | H42: 9.222222222e-05 | I42: 0.005388888889 | K42: 0.005388888889 | L42: Extend the spreadsheet to longer columns of data by inserting rows as needed and the dragging the last row before the insertion for columns C through J.
A43: 170 | B43: 0.0001 | C43: 0.0001 | D43: 0.0001333333333 | F43: 5.555555556e-06 | G43: 0.001244444444 | H43: 5e-05 | I43: 0.003744444444 | K43: 0.003744444444
A44: 175 | B44: 0.0002 | C44: 0.0002 | D44: 0.0001666666667 | F44: 5.555555556e-06 | G44: 0.001277777778 | H44: -1.666666667e-05 | I44: 0.0004444444444 | K44: 0.0004444444444
A45: 180 | B45: 0.0002 | C45: 0.0002 | D45: 0.0001888888889 | F45: 4.444444444e-06 | G45: 0.001077777778 | H45: -1.777777778e-05 | I45: 0.0001888888889 | K45: 0.0001888888889
A46: 185 | B46: 0.0002 | C46: 0.0002 | D46: 0.0002111111111 | F46: 4.444444444e-06 | G46: 0.0011 | H46: 4.888888889e-05 | I46: 0.003544444444 | K46: 0.003544444444
A47: 190 | B47: 0.0002 | C47: 0.0002 | D47: 0.0002333333333 | F47: 6.666666667e-06 | G47: 0.001566666667 | H47: 9.555555556e-05 | I47: 0.006344444444 | K47: 0.006344444444
A48: 195 | B48: 0.0003 | C48: 0.0003 | D48: 0.0002777777778 | F48: 8.888888889e-06 | G48: 0.002055555556 | H48: 7.555555556e-05 | I48: 0.005833333333 | K48: 0.005833333333
A49: 200 | B49: 0.0003 | C49: 0.0003 | D49: 0.0003222222222 | F49: 1e-05 | G49: 0.002322222222 | H49: 5.444444444e-05 | I49: 0.005044444444 | K49: 0.005044444444
A50: 205 | B50: 0.0004 | C50: 0.0004 | D50: 0.0003777777778 | F50: 1.111111111e-05 | G50: 0.0026 | H50: 7.777777778e-05 | I50: 0.006488888889 | K50: 0.006488888889
A51: 210 | B51: 0.0004 | C51: 0.0004 | D51: 0.0004333333333 | F51: 1.333333333e-05 | G51: 0.0031 | H51: 0.0001244444444 | I51: 0.009322222222 | K51: 0.009322222222
A52: 215 | B52: 0.0005 | C52: 0.0005 | D52: 0.0005111111111 | F52: 1.666666667e-05 | G52: 0.003844444444 | H52: 0.0001277777778 | I52: 0.01023333333 | K52: 0.01023333333
A53: 220 | B53: 0.0006 | C53: 0.0006 | D53: 0.0006 | F53: 1.888888889e-05 | G53: 0.004377777778 | H53: 0.0001077777778 | I53: 0.009766666667 | K53: 0.009766666667
A54: 225 | B54: 0.0007 | C54: 0.0007 | D54: 0.0007 | F54: 2.111111111e-05 | G54: 0.004922222222 | H54: 0.0001322222222 | I54: 0.01153333333 | K54: 0.01153333333 | M54: Tom O'Haver (toh@umd.edu), Version 3, July 2018
A55: 230 | B55: 0.0008 | C55: 0.0008 | D55: 0.0008111111111 | F55: 2.444444444e-05 | G55: 0.0057 | H55: 0.0002022222222 | I55: 0.01581111111 | K55: 0.01581111111
A56: 235 | B56: 0.0009 | C56: 0.0009 | D56: 0.0009444444444 | F56: 3e-05 | G56: 0.006944444444 | H56: 0.0002522222222 | I56: 0.01955555556 | K56: 0.01955555556
A57: 240 | B57: 0.0011 | C57: 0.0011 | D57: 0.001111111111 | F57: 3.555555556e-05 | G57: 0.008222222222 | H57: 0.0002355555556 | I57: 0.02 | K57: 0.02
A58: 245 | B58: 0.0013 | C58: 0.0013 | D58: 0.0013 | F58: 4e-05 | G58: 0.0093 | H58: 0.0002177777778 | I58: 0.02018888889 | K58: 0.02018888889
A59: 250 | B59: 0.0015 | C59: 0.0015 | D59: 0.001511111111 | F59: 4.444444444e-05 | G59: 0.0104 | H59: 0.0002444444444 | I59: 0.02262222222 | K59: 0.02262222222
A60: 255 | B60: 0.0017 | C60: 0.0017 | D60: 0.001744444444 | F60: 5e-05 | G60: 0.01174444444 | H60: 0.0002944444444 | I60: 0.02646666667 | K60: 0.02646666667
A61: 260 | B61: 0.002 | C61: 0.002 | D61: 0.002011111111 | F61: 5.666666667e-05 | G61: 0.01334444444 | H61: 0.0003455555556 | I61: 0.03062222222 | K61: 0.03062222222
A62: 265 | B62: 0.0023 | C62: 0.0023 | D62: 0.002311111111 | F62: 6.444444444e-05 | G62: 0.0152 | H62: 0.0003977777778 | I62: 0.03508888889 | K62: 0.03508888889
A63: 270 | B63: 0.0026 | C63: 0.0026 | D63: 0.002655555556 | F63: 7.333333333e-05 | G63: 0.01732222222 | H63: 0.0004511111111 | I63: 0.03987777778 | K63: 0.03987777778
A64: 275 | B64: 0.003 | C64: 0.003 | D64: 0.003044444444 | F64: 8.333333333e-05 | G64: 0.01971111111 | H64: 0.0004833333333 | I64: 0.04387777778 | K64: 0.04387777778
A65: 280 | B65: 0.0035 | C65: 0.0035 | D65: 0.003488888889 | F65: 9.333333333e-05 | G65: 0.02215555556 | H65: 0.0005377777778 | I65: 0.04904444444 | K65: 0.04904444444
A66: 285 | B66: 0.0039 | C66: 0.0039 | D66: 0.003977777778 | F66: 0.0001055555556 | G66: 0.02508888889 | H66: 0.0006388888889 | I66: 0.05703333333 | K66: 0.05703333333
A67: 290 | B67: 0.0045 | C67: 0.0045 | D67: 0.004544444444 | F67: 0.00012 | G67: 0.02854444444 | H67: 0.00072 | I67: 0.06454444444 | K67: 0.06454444444
A68: 295 | B68: 0.0051 | C68: 0.0051 | D68: 0.005177777778 | F68: 0.0001355555556 | G68: 0.03228888889 | H68: 0.0007577777778 | I68: 0.07017777778 | K68: 0.07017777778
A69: 300 | B69: 0.0059 | C69: 0.0059 | D69: 0.0059 | F69: 0.0001511111111 | G69: 0.03612222222 | H69: 0.0007955555556 | I69: 0.0759 | K69: 0.0759
A70: 305 | B70: 0.0066 | C70: 0.0066 | D70: 0.006688888889 | F70: 0.0001677777778 | G70: 0.04024444444 | H70: 0.0009011111111 | I70: 0.0853 | K70: 0.0853
A71: 310 | B71: 0.0075 | C71: 0.0075 | D71: 0.007577777778 | F71: 0.0001877777778 | G71: 0.04513333333 | H71: 0.00101 | I71: 0.09563333333 | K71: 0.09563333333
A72: 315 | B72: 0.0085 | C72: 0.0085 | D72: 0.008566666667 | F72: 0.0002088888889 | G72: 0.05034444444 | H72: 0.001075555556 | I72: 0.1041222222 | K72: 0.1041222222
A73: 320 | B73: 0.0096 | C73: 0.0096 | D73: 0.009666666667 | F73: 0.0002311111111 | G73: 0.05588888889 | H73: 0.001142222222 | I73: 0.113 | K73: 0.113
A74: 325 | B74: 0.0108 | C74: =B74-$C$7 -> 0.0108 | D74: 0.01087777778 | F74: 0.0002544444444 | G74: 0.06176666667 | H74: 0.001254444444 | I74: 0.1244888889 | K74: =I74 -> 0.1244888889
A75: 330 | B75: 0.0121 | C75: 0.0121 | D75: 0.01221111111 | F75: =(D76-D74)/(A76-A74) -> 0.0002811111111 | G75: 0.06843333333 | H75: =(G76-G74)/(A76-A74) -> 0.001392222222 | I75: 0.1380444444 | K75: 0.1380444444
A76: 335 | B76: 0.0136 | C76: 0.0136 | D76: 0.01368888889 | F76: 0.00031 | G76: 0.07568888889 | H76: 0.001487777778 | I76: 0.1500777778 | K76: 0.1500777778
A77: 340 | B77: 0.0152 | C77: 0.0152 | D77: 0.01531111111 | F77: 0.00034 | G77: 0.08331111111 | H77: 0.001562222222 | I77: 0.1614222222 | K77: 0.1614222222 | M77: Type in (or Copy and Paste) any data you like into column A (X) and B (Y).
A78: 345 | B78: 0.017 | C78: 0.017 | D78: 0.01708888889 | F78: 0.0003711111111 | G78: 0.09131111111 | H78: 0.00166 | I78: 0.1743111111 | K78: 0.1743111111 | M78: Change the smooth width by changing the 17 red coefficients in row 5, columns K through AA.
A79: 350 | B79: 0.0189 | C79: 0.0189 | D79: 0.01902222222 | F79: 0.0004044444444 | G79: 0.09991111111 | H79: 0.001804444444 | I79: 0.1901333333 | K79: 0.1901333333 | M79: Extend the spreadsheet to longer columns of data by dragging the last row of columns A through H down as needed.
A80: 355 | B80: 0.021 | C80: 0.021 | D80: 0.02113333333 | F80: 0.0004411111111 | G80: 0.1093555556 | H80: 0.001952222222 | I80: 0.2069666667 | K80: 0.2069666667
A81: 360 | B81: 0.0233 | C81: 0.0233 | D81: 0.02343333333 | F81: 0.00048 | G81: 0.1194333333 | H81: 0.00208 | I81: 0.2234333333 | K81: 0.2234333333
A82: 365 | B82: 0.0258 | C82: 0.0258 | D82: 0.02593333333 | F82: 0.0005211111111 | G82: 0.1301555556 | H82: 0.00221 | I82: 0.2406555556 | K82: 0.2406555556
A83: 370 | B83: 0.0285 | C83: 0.0285 | D83: 0.02864444444 | F83: 0.0005644444444 | G83: 0.1415333333 | H83: 0.002342222222 | I83: 0.2586444444 | K83: 0.2586444444
A84: 375 | B84: 0.0314 | C84: 0.0314 | D84: 0.03157777778 | F84: 0.00061 | G84: 0.1535777778 | H84: 0.002454444444 | I84: 0.2763 | K84: 0.2763
A85: 380 | B85: 0.0346 | C85: 0.0346 | D85: 0.03474444444 | F85: 0.0006566666667 | G85: 0.1660777778 | H85: 0.002545555556 | I85: 0.2933555556 | K85: 0.2933555556
A86: 385 | B86: 0.038 | C86: 0.038 | D86: =(C78*$M$6+C79*$N$6+C80*$O$6+C81*$P$6+C82*$Q$6+C83*$R$6+C84*$S$6+C85*$T$6+C86*$U$6+C87*$V$6+C88*$W$6+C89*$X$6+C90*$Y$6+C91*$Z$6+C92*$AA$6+C93*$AB$6+C94*$AC$6)/SUM($M$6:$AC$6) -> 0.03814444444 | F86: 0.0007044444444 | G86: 0.1790333333 | H86: 0.00266 | I86: 0.3120333333 | K86: 0.3120333333
A87: 390 | B87: 0.0416 | C87: 0.0416 | D87: 0.04178888889 | F87: 0.0007544444444 | G87: 0.1926777778 | H87: 0.002821111111 | I87: 0.3337333333 | K87: 0.3337333333
A88: 395 | B88: 0.0455 | C88: 0.0455 | D88: 0.04568888889 | F88: 0.0008077777778 | G88: 0.2072444444 | H88: 0.002985555556 | I88: 0.3565222222 | K88: 0.3565222222
A89: 400 | B89: 0.0497 | C89: 0.0497 | D89: 0.04986666667 | F89: 0.0008633333333 | G89: 0.2225333333 | H89: 0.003107777778 | I89: 0.3779222222 | K89: 0.3779222222
A90: 405 | B90: 0.0541 | C90: 0.0541 | D90: 0.05432222222 | F90: 0.00092 | G90: 0.2383222222 | H90: 0.003208888889 | I90: 0.3987666667 | K90: 0.3987666667
A91: 410 | B91: 0.0589 | C91: 0.0589 | D91: 0.05906666667 | F91: 0.0009777777778 | G91: 0.2546222222 | H91: 0.003311111111 | I91: 0.4201777778 | K91: 0.4201777778
A92: 415 | B92: 0.0639 | C92: 0.0639 | D92: 0.0641 | F92: 0.001036666667 | G92: 0.2714333333 | H92: 0.003414444444 | I92: 0.4421555556 | K92: 0.4421555556
A93: 420 | B93: 0.0692 | C93: 0.0692 | D93: 0.06943333333 | F93: 0.001096666667 | G93: 0.2887666667 | H93: 0.003496666667 | I93: 0.4636 | K93: 0.4636
A94: 425 | B94: 0.0749 | C94: 0.0749 | D94: 0.07506666667 | F94: 0.001156666667 | G94: 0.3064 | H94: 0.003556666667 | I94: 0.4842333333 | K94: 0.4842333333
A95: 430 | B95: 0.0808 | C95: 0.0808 | D95: 0.081 | F95: 0.001216666667 | G95: 0.3243333333 | H95: 0.003638888889 | I95: 0.5062777778 | K95: 0.5062777778
A96: 435 | B96: 0.087 | C96: 0.087 | D96: 0.08723333333 | F96: 0.001277777778 | G96: 0.3427888889 | H96: 0.003722222222 | I96: 0.5289 | K96: 0.5289
A97: 440 | B97: 0.0936 | C97: 0.0936 | D97: 0.09377777778 | F97: 0.001338888889 | G97: 0.3615555556 | H97: 0.003761111111 | I97: 0.5496111111 | K97: 0.5496111111
A98: 445 | B98: 0.1004 | C98: 0.1004 | D98: 0.1006222222 | F98: 0.001398888889 | G98: =D98+$K$4*F98 -> 0.3804 | H98: 0.003776666667 | I98: =G98+$K$5*H98 -> 0.5692333333 | K98: 0.5692333333
A99: 450 | B99: 0.1076 | C99: 0.1076 | D99: 0.1077666667 | F99: 0.001457777778 | G99: 0.3993222222 | H99: 0.003813333333 | I99: 0.5899888889 | K99: 0.5899888889
A100: 455 | B100: 0.115 | C100: 0.115 | D100: 0.1152 | F100: 0.001516666667 | G100: 0.4185333333 | H100: 0.003894444444 | I100: 0.6132555556 | K100: 0.6132555556
A101: 460 | B101: 0.1227 | C101: 0.1227 | D101: 0.1229333333 | F101: 0.001576666667 | G101: 0.4382666667 | H101: 0.003932222222 | I101: 0.6348777778 | K101: 0.6348777778
A102: 465 | B102: 0.1308 | C102: 0.1308 | D102: 0.1309666667 | F102: 0.001634444444 | G102: 0.4578555556 | H102: 0.003878888889 | I102: 0.6518 | K102: 0.6518
A103: 470 | B103: 0.1391 | C103: 0.1391 | D103: 0.1392777778 | F103: 0.001688888889 | G103: 0.4770555556 | H103: 0.0038 | I103: 0.6670555556 | K103: 0.6670555556
A104: 475 | B104: 0.1477 | C104: 0.1477 | D104: 0.1478555556 | F104: 0.00174 | G104: 0.4958555556 | H104: 0.00374 | I104: 0.6828555556 | K104: 0.6828555556
A105: 480 | B105: 0.1565 | C105: 0.1565 | D105: 0.1566777778 | F105: 0.001788888889 | G105: 0.5144555556 | H105: 0.0037 | I105: 0.6994555556 | K105: 0.6994555556
A106: 485 | B106: 0.1656 | C106: 0.1656 | D106: 0.1657444444 | F106: 0.001835555556 | G106: 0.5328555556 | H106: 0.003613333333 | I106: 0.7135222222 | K106: 0.7135222222
A107: 490 | B107: 0.1749 | C107: 0.1749 | D107: 0.1750333333 | F107: 0.001877777778 | G107: 0.5505888889 | H107: 0.0035 | I107: 0.7255888889 | K107: 0.7255888889
A108: 495 | B108: 0.1844 | C108: 0.1844 | D108: 0.1845222222 | F108: 0.001916666667 | G108: 0.5678555556 | H108: 0.003405555556 | I108: 0.7381333333 | K108: 0.7381333333
A109: 500 | B109: 0.1941 | C109: 0.1941 | D109: 0.1942 | F109: 0.001952222222 | G109: 0.5846444444 | H109: 0.00333 | I109: 0.7511444444 | K109: 0.7511444444
A110: 505 | B110: 0.2039 | C110: 0.2039 | D110: 0.2040444444 | F110: 0.001985555556 | G110: 0.6011555556 | H110: 0.003252222222 | I110: 0.7637666667 | K110: 0.7637666667
A111: 510 | B111: 0.214 | C111: 0.214 | D111: 0.2140555556 | F111: 0.002015555556 | G111: 0.6171666667 | H111: 0.003126666667 | I111: 0.7735 | K111: 0.7735
A112: 515 | B112: 0.2241 | C112: 0.2241 | D112: 0.2242 | F112: 0.002041111111 | G112: 0.6324222222 | H112: 0.002974444444 | I112: 0.7811444444 | K112: 0.7811444444
A113: 520 | B113: 0.2344 | C113: 0.2344 | D113: 0.2344666667 | F113: 0.002062222222 | G113: 0.6469111111 | H113: 0.002773333333 | I113: 0.7855777778 | K113: 0.7855777778
A114: 525 | B114: 0.2448 | C114: 0.2448 | D114: 0.2448222222 | F114: 0.002076666667 | G114: 0.6601555556 | H114: 0.002543333333 | I114: 0.7873222222 | K114: 0.7873222222
A115: 530 | B115: 0.2552 | C115: 0.2552 | D115: 0.2552333333 | F115: 0.002085555556 | G115: 0.6723444444 | H115: 0.00233 | I115: 0.7888444444 | K115: 0.7888444444
A116: 535 | B116: 0.2657 | C116: 0.2657 | D116: 0.2656777778 | F116: 0.002088888889 | G116: 0.6834555556 | H116: 0.002155555556 | I116: 0.7912333333 | K116: 0.7912333333
A117: 540 | B117: 0.2761 | C117: 0.2761 | D117: 0.2761222222 | F117: 0.002088888889 | G117: 0.6939 | H117: 0.002 | I117: 0.7939 | K117: 0.7939
A118: 545 | B118: 0.2866 | C118: 0.2866 | D118: 0.2865666667 | F118: 0.002084444444 | G118: 0.7034555556 | H118: 0.001795555556 | I118: 0.7932333333 | K118: 0.7932333333
A119: 550 | B119: 0.297 | C119: 0.297 | D119: 0.2969666667 | F119: 0.002074444444 | G119: 0.7118555556 | H119: 0.001563333333 | I119: 0.7900222222 | K119: 0.7900222222
A120: 555 | B120: 0.3074 | C120: 0.3074 | D120: 0.3073111111 | F120: 0.002058888889 | G120: 0.7190888889 | H120: 0.001325555556 | I120: 0.7853666667 | K120: 0.7853666667
A121: 560 | B121: 0.3176 | C121: 0.3176 | D121: 0.3175555556 | F121: 0.002037777778 | G121: 0.7251111111 | H121: 0.001104444444 | I121: 0.7803333333 | K121: 0.7803333333
A122: 565 | B122: 0.3278 | C122: 0.3278 | D122: 0.3276888889 | F122: 0.002012222222 | G122: 0.7301333333 | H122: 0.0008788888889 | I122: 0.7740777778 | K122: 0.7740777778
A123: 570 | B123: 0.3378 | C123: 0.3378 | D123: 0.3376777778 | F123: 0.001981111111 | G123: 0.7339 | H123: 0.0006477777778 | I123: 0.7662888889 | K123: 0.7662888889
A124: 575 | B124: 0.3476 | C124: 0.3476 | D124: 0.3475 | F124: 0.001945555556 | G124: 0.7366111111 | H124: 0.0004344444444 | I124: 0.7583333333 | K124: 0.7583333333
A125: 580 | B125: 0.3573 | C125: 0.3573 | D125: 0.3571333333 | F125: 0.001905555556 | G125: 0.7382444444 | H125: 0.0002388888889 | I125: 0.7501888889 | K125: 0.7501888889
A126: 585 | B126: 0.3667 | C126: 0.3667 | D126: 0.3665555556 | F126: 0.001862222222 | G126: 0.739 | H126: 6.222222222e-05 | I126: 0.7421111111 | K126: 0.7421111111
A127: 590 | B127: 0.3759 | C127: 0.3759 | D127: 0.3757555556 | F127: 0.001815555556 | G127: 0.7388666667 | H127: -0.00014 | I127: 0.7318666667 | K127: 0.7318666667
A128: 595 | B128: 0.3849 | C128: 0.3849 | D128: 0.3847111111 | F128: 0.001764444444 | G128: 0.7376 | H128: -0.0003688888889 | I128: 0.7191555556 | K128: 0.7191555556
A129: 600 | B129: 0.3936 | C129: 0.3936 | D129: 0.3934 | F129: 0.001708888889 | G129: 0.7351777778 | H129: -0.00058 | I129: 0.7061777778 | K129: 0.7061777778
A130: 605 | B130: 0.402 | C130: 0.402 | D130: 0.4018 | F130: 0.00165 | G130: 0.7318 | H130: -0.00075 | I130: 0.6943 | K130: 0.6943
A131: 610 | B131: 0.4101 | C131: 0.4101 | D131: 0.4099 | F131: 0.001588888889 | G131: 0.7276777778 | H131: -0.0009 | I131: 0.6826777778 | K131: 0.6826777778
A132: 615 | B132: 0.4179 | C132: 0.4179 | D132: 0.4176888889 | F132: 0.001525555556 | G132: 0.7228 | H132: -0.001074444444 | I132: 0.6690777778 | K132: 0.6690777778
A133: 620 | B133: 0.4254 | C133: 0.4254 | D133: 0.4251555556 | F133: 0.001458888889 | G133: 0.7169333333 | H133: -0.001252222222 | I133: 0.6543222222 | K133: 0.6543222222
A134: 625 | B134: 0.4325 | C134: 0.4325 | D134: 0.4322777778 | F134: 0.00139 | G134: 0.7102777778 | H134: -0.00141 | I134: 0.6397777778 | K134: 0.6397777778
A135: 630 | B135: 0.4393 | C135: 0.4393 | D135: 0.4390555556 | F135: 0.001318888889 | G135: 0.7028333333 | H135: -0.00157 | I135: 0.6243333333 | K135: 0.6243333333
A136: 635 | B136: 0.4457 | C136: 0.4457 | D136: 0.4454666667 | F136: 0.001245555556 | G136: 0.6945777778 | H136: -0.00171 | I136: 0.6090777778 | K136: 0.6090777778
A137: 640 | B137: 0.4518 | C137: 0.4518 | D137: 0.4515111111 | F137: 0.001171111111 | G137: 0.6857333333 | H137: -0.001806666667 | I137: 0.5954 | K137: 0.5954
A138: 645 | B138: 0.4574 | C138: =B138-$C$7 -> 0.4574 | D138: 0.4571777778 | F138: 0.001096666667 | G138: 0.6765111111 | H138: -0.001881111111 | I138: 0.5824555556 | K138: =I138 -> 0.5824555556
A139: 650 | B139: 0.4627 | C139: 0.4627 | D139: 0.4624777778 | F139: =(D140-D138)/(A140-A138) -> 0.001022222222 | G139: 0.6669222222 | H139: =(G140-G138)/(A140-A138) -> -0.002 | I139: 0.5669222222 | K139: 0.5669222222
A140: 655 | B140: 0.4677 | C140: 0.4677 | D140: 0.4674 | F140: 0.0009455555556 | G140: 0.6565111111 | H140: -0.002143333333 | I140: 0.5493444444 | K140: 0.5493444444
A141: 660 | B141: 0.4722 | C141: 0.4722 | D141: 0.4719333333 | F141: 0.0008677777778 | G141: 0.6454888889 | H141: -0.002221111111 | I141: 0.5344333333 | K141: 0.5344333333
A142: 665 | B142: 0.4763 | C142: 0.4763 | D142: 0.4760777778 | F142: 0.0007911111111 | G142: 0.6343 | H142: -0.002231111111 | I142: 0.5227444444 | K142: 0.5227444444
A143: 670 | B143: 0.4801 | C143: 0.4801 | D143: 0.4798444444 | F143: 0.0007166666667 | G143: 0.6231777778 | H143: -0.002238888889 | I143: 0.5112333333 | K143: 0.5112333333
A144: 675 | B144: 0.4835 | C144: 0.4835 | D144: 0.4832444444 | F144: 0.0006433333333 | G144: 0.6119111111 | H144: -0.00229 | I144: 0.4974111111 | K144: 0.4974111111
A145: 680 | B145: 0.4865 | C145: 0.4865 | D145: 0.4862777778 | F145: 0.00057 | G145: 0.6002777778 | H145: -0.002363333333 | I145: 0.4821111111 | K145: 0.4821111111
A146: 685 | B146: 0.4892 | C146: 0.4892 | D146: 0.4889444444 | F146: 0.0004966666667 | G146: 0.5882777778 | H146: -0.002414444444 | I146: 0.4675555556 | K146: 0.4675555556
A147: 690 | B147: 0.4915 | C147: 0.4915 | D147: 0.4912444444 | F147: 0.0004244444444 | G147: 0.5761333333 | H147: -0.00242 | I147: 0.4551333333 | K147: 0.4551333333
A148: 695 | B148: 0.4934 | C148: 0.4934 | D148: 0.4931888889 | F148: 0.0003544444444 | G148: 0.5640777778 | H148: -0.002401111111 | I148: 0.4440222222 | K148: 0.4440222222
A149: 700 | B149: 0.495 | C149: 0.495 | D149: 0.4947888889 | F149: 0.0002866666667 | G149: 0.5521222222 | H149: -0.002402222222 | I149: 0.4320111111 | K149: 0.4320111111
A150: 705 | B150: 0.4963 | C150: 0.4963 | D150: =(C142*$M$6+C143*$N$6+C144*$O$6+C145*$P$6+C146*$Q$6+C147*$R$6+C148*$S$6+C149*$T$6+C150*$U$6+C151*$V$6+C152*$W$6+C153*$X$6+C154*$Y$6+C155*$Z$6+C156*$AA$6+C157*$AB$6+C158*$AC$6)/SUM($M$6:$AC$6) -> 0.4960555556 | F150: 0.00022 | G150: 0.5400555556 | H150: -0.002446666667 | I150: 0.4177222222 | K150: 0.4177222222
A151: 710 | B151: 0.4972 | C151: 0.4972 | D151: 0.4969888889 | F151: 0.0001533333333 | G151: 0.5276555556 | H151: -0.002491111111 | I151: 0.4031 | K151: 0.4031
A152: 715 | B152: 0.4978 | C152: 0.4978 | D152: 0.4975888889 | F152: 8.777777778e-05 | G152: 0.5151444444 | H152: -0.00249 | I152: 0.3906444444 | K152: 0.3906444444
A153: 720 | B153: 0.4981 | C153: 0.4981 | D153: 0.4978666667 | F153: 2.444444444e-05 | G153: 0.5027555556 | H153: -0.00242 | I153: 0.3817555556 | K153: 0.3817555556
A154: 725 | B154: 0.498 | C154: 0.498 | D154: 0.4978333333 | F154: -3.444444444e-05 | G154: 0.4909444444 | H154: -0.002301111111 | I154: 0.3758888889 | K154: 0.3758888889
A155: 730 | B155: 0.4977 | C155: 0.4977 | D155: 0.4975222222 | F155: -8.888888889e-05 | G155: 0.4797444444 | H155: -0.002222222222 | I155: 0.3686333333 | K155: 0.3686333333
A156: 735 | B156: 0.4971 | C156: 0.4971 | D156: 0.4969444444 | F156: -0.0001411111111 | G156: 0.4687222222 | H156: -0.00223 | I156: 0.3572222222 | K156: 0.3572222222
A157: 740 | B157: 0.4963 | C157: 0.4963 | D157: 0.4961111111 | F157: -0.0001933333333 | G157: 0.4574444444 | H157: -0.002282222222 | I157: 0.3433333333 | K157: 0.3433333333
A158: 745 | B158: 0.4952 | C158: 0.4952 | D158: 0.4950111111 | F158: -0.0002455555556 | G158: 0.4459 | H158: -0.002267777778 | I158: 0.3325111111 | K158: 0.3325111111
A159: 750 | B159: 0.4938 | C159: 0.4938 | D159: 0.4936555556 | F159: -0.0002944444444 | G159: 0.4347666667 | H159: -0.002183333333 | I159: 0.3256 | K159: 0.3256
A160: 755 | B160: 0.4922 | C160: 0.4922 | D160: 0.4920666667 | F160: -0.00034 | G160: 0.4240666667 | H160: -0.002117777778 | I160: 0.3181777778 | K160: 0.3181777778
A161: 760 | B161: 0.4904 | C161: 0.4904 | D161: 0.4902555556 | F161: -0.0003833333333 | G161: 0.4135888889 | H161: -0.002094444444 | I161: 0.3088666667 | K161: 0.3088666667
A162: 765 | B162: 0.4884 | C162: 0.4884 | D162: 0.4882333333 | F162: -0.0004255555556 | G162: =D162+$K$4*F162 -> 0.4031222222 | H162: -0.00207 | I162: =G162+$K$5*H162 -> 0.2996222222 | K162: 0.2996222222
A163: 770 | B163: 0.4861 | C163: 0.4861 | D163: 0.486 | F163: -0.0004655555556 | G163: 0.3928888889 | H163: -0.001998888889 | I163: 0.2929444444 | K163: 0.2929444444
A164: 775 | B164: 0.4837 | C164: 0.4837 | D164: 0.4835777778 | F164: -0.0005022222222 | G164: 0.3831333333 | H164: -0.001924444444 | I164: 0.2869111111 | K164: 0.2869111111
A165: 780 | B165: 0.4811 | C165: 0.4811 | D165: 0.4809777778 | F165: -0.0005366666667 | G165: 0.3736444444 | H165: -0.00187 | I165: 0.2801444444 | K165: 0.2801444444
A166: 785 | B166: 0.4783 | C166: 0.4783 | D166: 0.4782111111 | F166: -0.0005688888889 | G166: 0.3644333333 | H166: -0.001813333333 | I166: 0.2737666667 | K166: 0.2737666667
A167: 790 | B167: 0.4754 | C167: 0.4754 | D167: 0.4752888889 | F167: -0.0005988888889 | G167: 0.3555111111 | H167: -0.001754444444 | I167: 0.2677888889 | K167: 0.2677888889
A168: 795 | B168: 0.4723 | C168: 0.4723 | D168: 0.4722222222 | F168: -0.0006266666667 | G168: 0.3468888889 | H168: -0.001715555556 | I168: 0.2611111111 | K168: 0.2611111111
A169: 800 | B169: 0.4691 | C169: 0.4691 | D169: 0.4690222222 | F169: -0.0006533333333 | G169: 0.3383555556 | H169: -0.001697777778 | I169: 0.2534666667 | K169: 0.2534666667
A170: 805 | B170: 0.4658 | C170: 0.4658 | D170: 0.4656888889 | F170: -0.0006788888889 | G170: 0.3299111111 | H170: -0.001656666667 | I170: 0.2470777778 | K170: 0.2470777778
A171: 810 | B171: 0.4623 | C171: 0.4623 | D171: 0.4622333333 | F171: -0.0007022222222 | G171: 0.3217888889 | H171: -0.001591111111 | I171: 0.2422333333 | K171: 0.2422333333
A172: 815 | B172: 0.4587 | C172: 0.4587 | D172: 0.4586666667 | F172: -0.0007233333333 | G172: 0.314 | H172: -0.001545555556 | I172: 0.2367222222 | K172: 0.2367222222
A173: 820 | B173: 0.4551 | C173: 0.4551 | D173: 0.455 | F173: -0.0007433333333 | G173: 0.3063333333 | H173: -0.001521111111 | I173: 0.2302777778 | K173: 0.2302777778
A174: 825 | B174: 0.4513 | C174: 0.4513 | D174: 0.4512333333 | F174: -0.0007622222222 | G174: 0.2987888889 | H174: -0.001473333333 | I174: 0.2251222222 | K174: 0.2251222222
A175: 830 | B175: 0.4474 | C175: 0.4474 | D175: 0.4473777778 | F175: -0.0007788888889 | G175: 0.2916 | H175: -0.001401111111 | I175: 0.2215444444 | K175: 0.2215444444
A176: 835 | B176: 0.4435 | C176: 0.4435 | D176: 0.4434444444 | F176: -0.0007933333333 | G176: 0.2847777778 | H176: -0.001348888889 | I176: 0.2173333333 | K176: 0.2173333333
A177: 840 | B177: 0.4395 | C177: 0.4395 | D177: 0.4394444444 | F177: -0.0008066666667 | G177: 0.2781111111 | H177: -0.001317777778 | I177: 0.2122222222 | K177: 0.2122222222
A178: 845 | B178: 0.4354 | C178: 0.4354 | D178: 0.4353777778 | F178: -0.0008188888889 | G178: 0.2716 | H178: -0.001285555556 | I178: 0.2073222222 | K178: 0.2073222222
A179: 850 | B179: 0.4313 | C179: 0.4313 | D179: 0.4312555556 | F179: -0.00083 | G179: 0.2652555556 | H179: -0.001252222222 | I179: 0.2026444444 | K179: 0.2026444444
A180: 855 | B180: 0.4271 | C180: 0.4271 | D180: 0.4270777778 | F180: -0.00084 | G180: 0.2590777778 | H180: -0.001217777778 | I180: 0.1981888889 | K180: 0.1981888889
A181: 860 | B181: 0.4229 | C181: 0.4229 | D181: 0.4228555556 | F181: -0.0008488888889 | G181: 0.2530777778 | H181: -0.001182222222 | I181: 0.1939666667 | K181: 0.1939666667
A182: 865 | B182: 0.4186 | C182: 0.4186 | D182: 0.4185888889 | F182: -0.0008566666667 | G182: 0.2472555556 | H182: -0.001123333333 | I182: 0.1910888889 | K182: 0.1910888889
A183: 870 | B183: 0.4143 | C183: 0.4143 | D183: 0.4142888889 | F183: -0.0008622222222 | G183: 0.2418444444 | H183: -0.001062222222 | I183: 0.1887333333 | K183: 0.1887333333
A184: 875 | B184: 0.41 | C184: 0.41 | D184: 0.4099666667 | F184: -0.0008666666667 | G184: 0.2366333333 | H184: -0.001022222222 | I184: 0.1855222222 | K184: 0.1855222222
A185: 880 | B185: 0.4056 | C185: 0.4056 | D185: 0.4056222222 | F185: -0.00087 | G185: 0.2316222222 | H185: -0.001003333333 | I185: 0.1814555556 | K185: 0.1814555556
A186: 885 | B186: 0.4013 | C186: 0.4013 | D186: 0.4012666667 | F186: -0.0008733333333 | G186: 0.2266 | H186: -0.001006666667 | I186: 0.1762666667 | K186: 0.1762666667
A187: 890 | B187: 0.3969 | C187: 0.3969 | D187: 0.3968888889 | F187: -0.0008766666667 | G187: 0.2215555556 | H187: -0.00101 | I187: 0.1710555556 | K187: 0.1710555556
A188: 895 | B188: 0.3925 | C188: 0.3925 | D188: 0.3925 | F188: -0.00088 | G188: 0.2165 | H188: -0.001013333333 | I188: 0.1658333333 | K188: 0.1658333333
A189: 900 | B189: 0.3881 | C189: 0.3881 | D189: 0.3880888889 | F189: -0.0008833333333 | G189: 0.2114222222 | H189: -0.0009944444444 | I189: 0.1617 | K189: 0.1617
A190: 905 | B190: 0.3837 | C190: 0.3837 | D190: 0.3836666667 | F190: -0.0008855555556 | G190: 0.2065555556 | H190: -0.00093 | I190: 0.1600555556 | K190: 0.1600555556
A191: 910 | B191: 0.3792 | C191: 0.3792 | D191: 0.3792333333 | F191: -0.0008855555556 | G191: 0.2021222222 | H191: -0.0008188888889 | I191: 0.1611777778 | K191: 0.1611777778
A192: 915 | B192: 0.3748 | C192: 0.3748 | D192: 0.3748111111 | F192: -0.0008822222222 | G192: 0.1983666667 | H192: -0.0007266666667 | I192: 0.1620333333 | K192: 0.1620333333
A193: 920 | B193: 0.3704 | C193: 0.3704 | D193: 0.3704111111 | F193: -0.0008777777778 | G193: 0.1948555556 | H193: -0.0007222222222 | I193: 0.1587444444 | K193: 0.1587444444
A194: 925 | B194: 0.366 | C194: 0.366 | D194: 0.3660333333 | F194: -0.0008744444444 | G194: 0.1911444444 | H194: -0.0007855555556 | I194: 0.1518666667 | K194: 0.1518666667
A195: 930 | B195: 0.3617 | C195: 0.3617 | D195: 0.3616666667 | F195: -0.0008733333333 | G195: 0.187 | H195: -0.0008288888889 | I195: 0.1455555556 | K195: 0.1455555556
A196: 935 | B196: 0.3573 | C196: 0.3573 | D196: 0.3573 | F196: -0.0008722222222 | G196: 0.1828555556 | H196: -0.0007833333333 | I196: 0.1436888889 | K196: 0.1436888889
A197: 940 | B197: 0.3529 | C197: 0.3529 | D197: 0.3529444444 | F197: -0.0008688888889 | G197: 0.1791666667 | H197: -0.0007133333333 | I197: 0.1435 | K197: 0.1435
A198: 945 | B198: 0.3486 | C198: 0.3486 | D198: 0.3486111111 | F198: -0.0008644444444 | G198: 0.1757222222 | H198: -0.0007088888889 | I198: 0.1402777778 | K198: 0.1402777778
A199: 950 | B199: 0.3443 | C199: 0.3443 | D199: 0.3443 | F199: -0.0008611111111 | G199: 0.1720777778 | H199: -0.00075 | I199: 0.1345777778 | K199: 0.1345777778
A200: 955 | B200: 0.34 | C200: 0.34 | D200: 0.34 | F200: -0.0008588888889 | G200: 0.1682222222 | H200: -0.0007477777778 | I200: 0.1308333333 | K200: 0.1308333333
... 509 more rows
